bitfinex/quotes_SOLUSD_20220227
["timestamp","ask_amount","ask_price","bid_price","bid_amount"]
[1645996341844,7.58497843,85.128,85.031,117.0]
[1645996342246,10.33176764,85.128,85.02,13.77]
[1645996342449,48.0925,85.127,85.03,13.77]
[1645996342648,7.79749114,85.126,85.031,2.74678921]
[1645996342851,7.79749114,85.126,85.031,119.74678921]
[1645996343447,2.74678921,85.125,85.031,119.74678921]
[1645996343646,6.0,85.124,85.03,13.77]
[1645996344047,6.73618026,85.123,85.03,13.77]
[1645996344248,7.69070717,85.122,85.03,13.77]
[1645996344448,6.46105162,85.121,85.021,117.0]
[1645996344647,7.96250739,85.12,85.021,117.0]
[1645996344848,8.74678921,85.12,85.021,117.0]
[1645996345047,1.72175831,85.119,85.021,117.0]
[1645996345248,6.0,85.118,85.021,117.0]
[1645996345648,7.78086049,85.118,85.021,117.0]
[1645996345848,119.74678921,85.117,85.011,117.0]
[1645996346047,117.0,85.115,85.003,117.0]
[1645996346252,117.0,85.113,84.993,46.4371]
[1645996346449,117.0,85.111,84.993,46.4371]
[1645996346654,123.0,85.11,85.003,2.74678921]
[1645996346848,7.83092477,85.109,85.003,2.74678921]
[1645996347251,7.98364022,85.109,85.005,117.0]
[1645996347448,1.62970794,85.115,85.007,117.0]
[1645996347648,1.62970794,85.115,85.021,117.0]
[1645996348248,1.62970794,85.115,85.022,2.74678921]
[1645996348448,1.62970794,85.115,85.031,117.0]
[1645996348949,6.0,85.114,85.031,117.0]
[1645996349952,6.0,85.114,85.031,500.0]
[1645996350153,1.80943119,85.112,85.031,500.0]
[1645996350453,6.0,85.111,85.031,500.0]
[1645996350661,32.52180414,85.111,85.031,500.0]
[1645996350855,143.52180414,85.11,85.031,500.0]
[1645996351053,7.58301538,85.109,85.031,500.0]
[1645996351256,10.32980459,85.109,85.031,500.0]
[1645996351554,2.74678921,85.108,85.031,500.0]
[1645996351753,6.0,85.107,85.031,500.0]
[1645996352156,1.62628449,85.108,85.031,500.0]
[1645996352354,6.0,85.107,85.031,500.0]
[1645996352554,6.0,85.114,85.031,500.0]
[1645996353355,6.0,85.114,85.032,117.0]
[1645996355155,1.98768972,85.115,85.032,126.05678921]
[1645996355958,35.19052179,85.114,85.032,126.05678921]
[1645996356157,2.10346505,85.113,85.032,117.0]
[1645996356355,6.0,85.112,85.032,117.0]
[1645996356756,6.0,85.112,85.031,500.0]
[1645996357557,6.0,85.112,85.032,2.74678921]
[1645996357857,6.0,85.112,85.031,500.0]
[1645996358260,6.0,85.112,85.032,117.0]
[1645996358657,6.0,85.112,85.031,500.0]
[1645996359058,2.10346505,85.113,85.031,500.0]
[1645996359259,2.10346505,85.113,85.032,117.0]
[1645996359458,2.10346505,85.113,85.032,119.74678921]
[1645996359858,2.10346505,85.113,85.033,2.74678921]
[1645996360059,2.10346505,85.113,85.04,17.6385]
[1645996360260,2.10346505,85.113,85.041,117.0]
[1645996360460,2.10346505,85.113,85.043,117.0]
[1645996360661,3.24881162,85.158,85.045,117.0]
[1645996360860,1.56635397,85.136,85.061,117.0]
[1645996361059,32.91413852,85.135,85.061,117.0]
[1645996361261,1.75120175,85.134,85.063,117.0]
[1645996361460,1.75120175,85.134,85.065,117.0]
[1645996361663,1.75120175,85.134,85.067,117.0]
[1645996361859,1.75120175,85.134,85.071,117.0]
[1645996362460,1.75120175,85.134,85.073,117.0]
[1645996362661,1.75120175,85.134,85.075,117.0]
[1645996363463,1.75120175,85.134,85.07,13.77]
[1645996363660,1.25120175,85.134,85.06,13.77]
[1645996364661,1.25120175,85.134,85.061,117.0]
[1645996364864,1.25120175,85.134,85.06,13.77]
[1645996365588,6.0,85.133,85.06,13.77]
[1645996365763,7.63149368,85.133,85.061,2.74678921]
[1645996365966,1.63149368,85.131,85.061,2.74678921]
[1645996366163,7.63149368,85.13,85.04,13.77]
[1645996366363,1.63149368,85.128,85.04,13.77]
[1645996366565,6.0,85.127,85.041,117.0]
[1645996366765,1.63149368,85.124,85.04,13.77]
[1645996367065,1.63149368,85.117,85.031,500.0]
[1645996367265,1.63149368,85.121,85.031,500.0]
[1645996367465,6.0,85.116,85.031,500.0]
[1645996367767,6.0,85.116,85.032,117.0]
[1645996368165,6.0,85.117,85.032,117.0]
[1645996368765,7.63149368,85.118,85.032,117.0]
[1645996368964,7.63149368,85.118,85.031,500.0]
[1645996369171,1.63149368,85.117,85.031,500.0]
[1645996369372,1.63149368,85.109,85.031,500.0]
[1645996369572,1.63149368,85.102,85.031,500.0]
[1645996369772,6.0,85.101,85.031,500.0]
[1645996369973,7.63149368,85.101,85.031,500.0]
[1645996370374,1.63149368,85.1,85.031,500.0]
[1645996370575,7.63149368,85.099,85.031,500.0]
[1645996371276,1.63149368,85.098,85.031,500.0]
[1645996371576,6.0,85.097,85.031,500.0]
[1645996371975,6.0,85.098,85.031,500.0]
[1645996372376,6.0,85.097,85.031,500.0]
[1645996372575,6.0,85.098,85.031,500.0]
[1645996372777,7.63149368,85.105,85.031,500.0]
[1645996372976,1.63149368,85.103,85.031,500.0]
[1645996373189,6.0,85.102,85.031,500.0]
[1645996373389,117.0,85.101,85.031,500.0]
[1645996373592,1.63149368,85.092,85.031,500.0]
[1645996373789,1.63149368,85.09,85.031,500.0]
[1645996373991,117.0,85.088,85.031,500.0]
[1645996374290,1.63149368,85.086,85.031,500.0]
[1645996374490,1.63149368,85.082,85.031,500.0]
[1645996374690,117.0,85.08,85.031,500.0]
[1645996374891,117.0,85.078,85.031,500.0]
[1645996375092,117.0,85.076,85.031,500.0]
[1645996375290,1.90667116,85.073,85.031,457.997]
[1645996375491,1.63149368,85.068,85.031,457.997]
[1645996375691,1.94394165,85.065,85.031,457.997]
[1645996375891,1.66357945,85.062,85.031,457.997]
[1645996376097,117.0,85.06,85.031,457.997]
[1645996376293,117.0,85.058,85.031,457.997]
[1645996376492,7.59378902,85.057,85.031,457.997]
[1645996376692,10.34057823,85.057,85.031,457.997]
[1645996376995,10.34057823,85.057,84.93,17.6569]
[1645996376996,1.49645506,85.054,84.94,13.77]
[1645996377194,1.49645506,85.054,84.93,13.77]
[1645996377395,1.67993289,85.051,84.931,6.0]
[1645996377592,1.63879011,85.048,84.931,6.0]
[1645996377793,117.0,85.046,84.931,6.0]
[1645996377996,12.52877097,85.045,84.932,25.81063357]
[1645996378293,1.61439275,85.044,84.933,123.0]
[1645996378493,6.0,85.043,84.933,147.25795951]
[1645996378695,7.66020342,85.043,84.933,147.25795951]
[1645996378893,7.66020342,85.043,84.934,2.74678921]
[1645996379096,7.66020342,85.043,84.936,117.0]
[1645996379294,7.66020342,85.043,84.941,117.0]
[1645996379494,7.66020342,85.043,84.942,123.0]
[1645996379996,7.66020342,85.043,84.943,2.74678921]
[1645996380198,7.66020342,85.043,84.947,117.0]
[1645996380498,7.66020342,85.043,84.946,28.34132755]
[1645996380697,7.66020342,85.043,84.948,2.74678921]
[1645996381097,7.66020342,85.043,84.946,28.34132755]
[1645996381099,119.74678921,85.042,84.946,28.34132755]
[1645996381401,12.4506047,85.041,84.946,28.34132755]
[1645996381596,1.92436826,85.04,84.947,2.74678921]
[1645996381798,6.0,85.039,84.947,2.74678921]
[1645996382599,6.0,85.039,84.947,119.74678921]
[1645996382996,6.0,85.039,84.948,2.74678921]
[1645996383395,6.0,85.039,84.95,117.0]
[1645996383798,6.0,85.039,84.951,2.74678921]
[1645996383999,1.92436826,85.04,84.951,2.74678921]
[1645996384000,1.92436826,85.04,84.953,117.0]
[1645996384201,1.92436826,85.04,84.955,117.0]
[1645996384398,1.92436826,85.04,84.957,117.0]
[1645996384596,1.92436826,85.04,84.961,117.0]
[1645996384796,1.92436826,85.04,84.963,117.0]
[1645996384999,1.92436826,85.04,84.964,26.79538134]
[1645996385498,22.9684,85.056,84.965,119.74678921]
[1645996385697,7.61974827,85.055,84.967,117.0]
[1645996385897,7.61974827,85.055,84.971,117.0]
[1645996386397,7.61974827,85.055,84.973,117.0]
[1645996386797,7.61974827,85.055,84.972,6.0]
[1645996386798,1.72730228,85.065,84.975,117.0]
[1645996387000,1.72730228,85.065,84.981,117.0]
[1645996387297,24.6605,85.073,84.98,17.6479]
[1645996387298,1.84641222,85.072,84.991,117.0]
[1645996387699,1.84641222,85.072,84.992,2.74678921]
[1645996387899,117.0,85.07,84.992,2.74678921]
[1645996388100,17.6537,85.06,84.982,30.78639663]
[1645996388300,7.46191033,85.059,84.982,30.78639663]
[1645996388702,7.45078921,85.058,84.982,30.78639663]
[1645996388899,6.0,85.057,84.96,13.77]
[1645996389104,117.0,85.055,84.95,13.77]
[1645996389301,7.49993402,85.054,84.95,13.77]
[1645996389701,119.74678921,85.053,84.95,13.77]
[1645996389902,7.65141763,85.052,84.951,143.99604988]
[1645996390103,10.39820684,85.052,84.951,143.99604988]
[1645996390503,10.39820684,85.052,84.953,117.0]
[1645996390702,10.39820684,85.052,84.955,117.0]
[1645996390903,10.39820684,85.052,84.957,117.0]
[1645996391104,10.39820684,85.052,84.961,117.0]
[1645996391304,2.74678921,85.051,84.961,117.0]
[1645996391508,117.0,85.049,84.96,13.77]
[1645996391706,117.0,85.047,84.951,26.99604988]
[1645996391905,117.0,85.045,84.951,26.99604988]
[1645996392103,117.0,85.043,84.951,26.99604988]
[1645996392403,117.0,85.041,84.951,26.99604988]
[1645996392604,117.0,85.039,84.951,26.99604988]
[1645996392803,117.0,85.037,84.951,26.99604988]
[1645996393004,7.53768554,85.036,84.951,26.99604988]
[1645996393403,121.706,85.035,84.951,26.99604988]
[1645996393604,7.65606747,85.034,84.951,26.99604988]
[1645996393805,1.53136585,85.032,84.951,26.99604988]
[1645996394004,6.0,85.031,84.951,26.99604988]
[1645996394207,4.706,85.03,84.93,13.77]
[1645996394406,7.86702689,85.029,84.92,13.77]
[1645996394605,4.707,85.028,84.912,23.3795]
[1645996394805,1.75136047,85.025,84.912,23.3795]
[1645996395006,1.80567177,85.022,84.912,23.3795]
[1645996395207,1.9028511,85.019,84.913,32.33146287]
[1645996395409,1.88205343,85.016,84.913,32.33146287]
[1645996395608,6.0,85.015,84.913,32.33146287]
[1645996395811,1.48425778,85.013,84.913,32.33146287]
[1645996396010,1.50469253,85.011,84.913,32.33146287]
[1645996396209,117.0,85.009,84.913,32.33146287]
[1645996396410,124.90554681,85.008,84.913,32.33146287]
[1645996396612,6.24158728,85.007,84.913,32.33146287]
[1645996396814,7.94180085,85.006,84.913,32.33146287]
[1645996397012,1.7238091,85.004,84.913,32.33146287]
[1645996397212,6.0,85.003,84.913,32.33146287]
[1645996397615,118.7373338,85.001,84.913,32.33146287]
[1645996397812,6.0,85.0,84.913,32.33146287]
[1645996398814,6.0,85.0,84.914,117.0]
[1645996401014,6.0,85.0,84.913,32.33146287]
[1645996401714,6.0,85.0,84.914,117.0]
[1645996402921,1.7373338,85.001,84.916,117.0]
[1645996403119,1.7373338,85.001,84.93,130.77]
[1645996403318,1.84079174,85.028,84.932,117.0]
[1645996403518,7.84079174,85.028,84.932,117.0]
[1645996403919,7.84079174,85.028,84.934,117.0]
[1645996404520,7.84079174,85.028,84.936,117.0]
[1645996404719,7.84079174,85.028,84.94,130.77]
[1645996404918,7.84079174,85.028,84.94,13.77]
[1645996405919,31.8175013,85.028,84.94,13.77]
[1645996406119,1.6082821,85.027,84.94,13.77]
[1645996406418,6.0,85.026,84.94,13.77]
[1645996406847,117.0,85.019,84.931,23.5692]
[1645996407020,1.94197836,85.016,84.931,23.5692]
[1645996407222,6.0,85.015,84.931,23.5692]
[1645996407419,8.74678921,85.015,84.931,23.5692]
[1645996407621,1.89447535,85.013,84.931,23.5692]
[1645996407819,1.59421028,85.01,84.931,23.5692]
[1645996408018,117.0,85.008,84.931,23.5692]
[1645996408219,1.59896883,85.006,84.931,23.5692]
[1645996408418,4.707,85.013,84.931,23.5692]
[1645996408419,6.0,85.005,84.932,117.0]
[1645996408619,1.91811684,85.019,84.932,119.74678921]
[1645996408818,6.0,85.018,84.933,2.74678921]
[1645996409219,1.91811684,85.019,84.933,2.74678921]
[1645996411024,6.0,85.018,84.933,2.74678921]
[1645996411824,6.0,85.018,84.935,117.0]
[1645996412023,23.5155,85.035,84.941,117.0]
[1645996412223,6.0,85.023,84.943,145.85603734]
[1645996412428,25.25145288,85.035,84.945,117.0]
[1645996412625,25.25145288,85.035,84.947,117.0]
[1645996412825,25.25145288,85.035,84.951,117.0]
[1645996413027,6.0,85.034,84.953,117.0]
[1645996413525,6.0,85.034,84.954,2.74678921]
[1645996414827,23.5155,85.035,84.955,6.0]
[1645996415028,23.5155,85.035,84.956,146.60483512]
[1645996415226,23.5155,85.035,84.961,117.0]
[1645996415827,23.5155,85.035,84.962,2.74678921]
[1645996416324,1.54639997,85.044,84.962,2.74678921]
[1645996416725,1.54639997,85.044,84.964,117.0]
[1645996416928,1.54639997,85.044,84.966,117.0]
[1645996417127,1.54639997,85.044,84.97,117.0]
[1645996417331,23.2563,85.045,84.97,117.0]
[1645996417526,1.85948958,85.055,84.97,130.77]
[1645996417931,1.85948958,85.055,84.972,117.0]
[1645996418333,1.85948958,85.055,84.972,119.74678921]
[1645996418536,6.0,85.054,84.972,2.74678921]
[1645996418733,6.0,85.054,84.951,48.4984]
[1645996418734,121.705,85.053,84.951,48.4984]
[1645996418937,117.0,85.049,84.948,2.74678921]
[1645996419134,117.0,85.047,84.931,47.0492]
[1645996419336,1.94859487,85.045,84.931,47.0492]
[1645996419639,6.0,85.044,84.932,153.3949668]
[1645996419836,4.706,85.043,84.932,156.14175601]
[1645996420038,6.0,85.042,84.933,2.74678921]
[1645996420239,31.3860533,85.042,84.933,2.74678921]
[1645996420437,1.77665865,85.041,84.933,2.74678921]
[1645996420638,1.86511094,85.029,84.933,2.74678921]
[1645996420937,6.0,85.028,84.935,117.0]
[1645996421141,6.0,85.028,84.937,117.0]
[1645996421338,6.0,85.028,84.939,117.0]
[1645996421739,6.0,85.028,84.941,117.0]
[1645996421954,1.63510183,85.027,84.941,117.0]
[1645996422153,6.0,85.026,84.941,117.0]
[1645996422554,6.0,85.026,84.942,2.74678921]
[1645996422955,25.24054043,85.04,84.944,117.0]
[1645996423159,1.47276948,85.078,84.951,117.0]
[1645996423356,1.54501958,85.1,84.954,72.60224822]
[1645996423562,1.63263418,85.095,84.99,172.11]
[1645996423855,1.63263418,85.116,85.002,2.87362034]
[1645996424055,26.95689662,85.108,85.005,27.34700303]
[1645996424256,33.24539195,85.093,85.012,2.67995884]
[1645996424455,1.63263418,85.128,85.014,117.0]
[1645996424660,19.27223418,85.13,85.017,2.52181992]
[1645996424855,17.6396,85.13,85.031,117.0]
[1645996425056,17.6396,85.13,85.034,2.33562341]
[1645996425258,17.6396,85.13,85.037,2.40249946]
[1645996425555,30.33262251,85.129,85.04,16.27666942]
[1645996425755,17.6417,85.12,85.041,6.0]
[1645996425954,17.6417,85.12,85.041,8.36090626]
[1645996426154,6.0,85.119,85.041,8.36090626]
[1645996426355,6.0,85.119,85.041,6.0]
[1645996426556,17.6417,85.12,85.032,8.86641216]
[1645996426754,17.6417,85.12,85.033,20.56792978]
[1645996426954,17.6417,85.12,85.034,8.35169031]
[1645996427355,17.6417,85.12,85.035,117.0]
[1645996427556,17.6417,85.12,85.036,8.67751425]
[1645996427759,17.6417,85.12,85.04,13.77]
[1645996427957,17.6417,85.12,85.041,6.0]
[1645996428157,17.6417,85.12,85.042,117.0]
[1645996428358,17.6417,85.12,85.043,8.94429679]
[1645996429158,17.6417,85.12,85.043,11.691086]
[1645996429863,17.6417,85.12,85.043,8.94429679]
[1645996430062,17.6417,85.12,85.044,2.74678921]
[1645996430266,17.6417,85.12,85.045,6.0]
[1645996430464,17.6417,85.12,85.046,4.88161528]
[1645996430665,17.6417,85.12,85.047,6.0]
[1645996430864,17.6417,85.12,85.046,2.74678921]
[1645996431068,17.6417,85.12,85.047,6.0]
[1645996431266,17.6417,85.12,85.048,117.0]
[1645996431465,30.33262251,85.129,85.05,13.77]
[1645996431664,30.33262251,85.129,85.051,26.94670597]
[1645996431865,30.33262251,85.129,85.052,3.11882254]
[1645996432064,30.33262251,85.129,85.053,6.0]
[1645996432265,7.63137792,85.128,85.051,6.0]
[1645996432464,117.0,85.127,85.032,2.49932808]
[1645996432666,6.0,85.126,85.032,2.49932808]
[1645996433066,117.0,85.125,85.032,2.49932808]
[1645996433265,117.0,85.123,85.019,2.67678582]
[1645996433567,1.43717426,85.12,85.019,2.67678582]
[1645996433766,1.78336307,85.117,85.019,2.67678582]
[1645996433967,117.0,85.113,85.019,2.67678582]
[1645996434167,6.0,85.112,85.019,2.67678582]
[1645996434566,30.33262251,85.099,85.019,2.67678582]
[1645996434770,6.0,85.098,85.019,2.67678582]
[1645996435170,6.0,85.098,85.02,13.77]
[1645996437367,6.0,85.098,85.019,2.67678582]
[1645996437567,6.0,85.098,85.02,13.77]
[1645996438269,17.6477,85.09,85.01,13.77]
[1645996438469,7.78067805,85.089,85.01,13.77]
[1645996438668,48.0336,85.097,85.011,2.74678921]
[1645996438869,7.64107116,85.096,85.011,2.74678921]
[1645996439069,121.702,85.095,84.992,23.7901]
[1645996439269,117.0,85.093,84.992,23.7901]
[1645996439471,117.0,85.091,84.98,13.77]
[1645996439671,117.0,85.089,84.985,3.04840231]
[1645996439874,17.6516,85.07,84.97,13.77]
[1645996440079,1.42054064,85.068,84.971,2.67046562]
[1645996440277,1.39295654,85.065,84.952,2.46357062]
[1645996440476,1.48896904,85.062,84.97,17.90156596]
[1645996440686,6.0,85.061,84.96,13.77]
[1645996441077,65.20470999,85.06,84.962,3.1179765]
[1645996441275,6.0,85.059,84.962,3.1179765]
[1645996441478,7.4732296,85.059,84.963,32.88058921]
[1645996441677,7.4732296,85.059,84.964,2.81695925]
[1645996441877,12.1782296,85.059,84.964,2.81695925]
[1645996442277,7.4732296,85.059,84.964,2.81695925]
[1645996443078,7.4732296,85.059,84.964,119.81695925]
[1645996443280,7.4732296,85.059,84.965,2.87541]
[1645996443477,2.74678921,85.058,84.971,117.0]
[1645996443679,2.74678921,85.058,84.972,2.78900505]
[1645996443878,32.02783243,85.065,84.973,117.0]
[1645996444079,32.02783243,85.065,84.975,117.0]
[1645996444279,32.02783243,85.065,84.977,117.0]
[1645996444479,32.02783243,85.065,84.979,117.0]
[1645996444681,32.02783243,85.065,84.99,13.77]
[1645996444884,6.0,85.064,84.99,13.77]
[1645996445483,117.0,85.063,84.975,2.44986616]
[1645996445682,117.0,85.061,84.975,2.44986616]
[1645996445885,117.0,85.059,84.975,2.44986616]
[1645996446084,7.71742783,85.058,84.975,2.44986616]
[1645996446282,1.71742783,85.058,84.975,2.44986616]
[1645996446482,117.0,85.056,84.966,2.74678921]
[1645996446683,117.0,85.054,84.967,6.0]
[1645996446883,117.0,85.052,84.967,6.0]
[1645996447084,117.0,85.05,84.967,6.0]
[1645996447384,33.36214389,85.051,84.967,6.0]
[1645996447385,117.0,85.048,84.967,6.0]
[1645996447585,7.79225728,85.047,84.967,9.67867058]
[1645996447783,17.6592,85.05,84.967,9.67867058]
[1645996447984,19.03516288,85.05,84.968,2.74678921]
[1645996448183,17.6592,85.05,84.969,6.0]
[1645996448783,17.6592,85.05,84.969,8.74678921]
[1645996449385,6.0,85.049,84.969,8.74678921]
[1645996449584,17.6592,85.05,84.969,8.74678921]
[1645996450689,117.0,85.049,84.969,8.74678921]
[1645996450891,117.0,85.047,84.969,6.0]
[1645996451090,124.36222605,85.046,84.958,6.0]
[1645996451290,1.37324251,85.045,84.958,6.0]
[1645996451592,6.0,85.044,84.959,2.74678921]
[1645996451790,6.0,85.044,84.96,6.0]
[1645996451991,1.37381596,85.042,84.956,2.78811981]
[1645996452191,4.705,85.041,84.93,13.77]
[1645996452391,117.0,85.039,84.92,13.77]
[1645996452690,117.0,85.035,84.921,18.98217125]
[1645996452891,1.62898398,85.032,84.922,2.79924655]
[1645996453091,1.47286814,85.029,84.922,2.79924655]
[1645996453291,58.3515,85.028,84.925,2.8702154]
[1645996453690,4.20722849,85.027,84.925,2.8702154]
[1645996453892,1.43641658,85.025,84.925,2.8702154]
[1645996454090,28.82817481,85.023,84.925,2.8702154]
[1645996454289,10.707,85.022,84.925,2.8702154]
[1645996454491,117.0,85.021,84.925,2.8702154]
[1645996454690,117.0,85.019,84.925,2.8702154]
[1645996454893,1.4373416,85.016,84.923,24.3569]
[1645996455191,4.707,85.015,84.923,24.3569]
[1645996455393,117.0,85.013,84.923,24.3569]
[1645996455610,117.0,85.011,84.91,2.43764132]
[1645996455808,117.0,85.009,84.911,27.21867026]
[1645996456010,65.05321974,85.01,84.911,24.275]
[1645996456011,117.0,85.007,84.911,24.275]
[1645996456207,117.0,85.005,84.911,24.275]
[1645996456408,117.0,85.003,84.911,24.275]
[1645996456610,6.0,85.002,84.912,117.0]
[1645996456808,2.74678921,85.002,84.913,2.26953054]
[1645996457008,6.0,85.001,84.914,5.19449048]
[1645996457208,8.74678921,85.001,84.914,5.19449048]
[1645996457408,8.74678921,85.001,84.913,2.26953054]
[1645996457409,119.74678921,85.0,84.913,2.26953054]
[1645996457608,117.0,84.998,84.913,2.26953054]
[1645996457808,117.0,84.996,84.913,2.26953054]
[1645996458008,6.0,84.995,84.913,2.26953054]
[1645996458512,30.7498351,84.994,84.915,2.46438912]
[1645996458709,6.0,84.993,84.915,2.46438912]
[1645996459009,8.74678921,84.993,84.915,2.46438912]
[1645996459210,2.74678921,84.992,84.915,2.46438912]
[1645996459409,6.0,84.991,84.915,2.46438912]
[1645996459811,2.74678921,84.99,84.915,2.46438912]
[1645996460013,6.0,84.989,84.915,2.46438912]
[1645996460311,2.74678921,84.99,84.915,119.46438912]
[1645996460511,4.708,85.017,84.916,5.4245112]
[1645996460712,4.708,85.017,84.932,2.92057174]
[1645996460912,23.2134,85.032,84.933,24.599]
[1645996461113,7.84206586,85.031,84.934,2.88735628]
[1645996461311,117.0,85.029,84.935,1.04368281]
[1645996461513,17.6623,85.02,84.94,13.77]
[1645996461913,117.0,85.027,84.94,13.77]
[1645996462212,124.77461348,85.026,84.94,13.77]
[1645996462713,17.6666,85.0,84.936,2.7023758]
[1645996463013,117.0,84.998,84.918,2.82929425]
[1645996463221,1.68357337,84.995,84.907,2.74678921]
[1645996463422,1.65713786,84.992,84.907,2.74678921]
[1645996463622,1.78071164,84.989,84.87,13.77]
[1645996463822,1.54533896,84.986,84.871,8.46693568]
[1645996464023,1.48260198,84.983,84.871,8.46693568]
[1645996464221,1.76235914,84.98,84.871,8.46693568]
[1645996464421,1.76738879,84.978,84.872,117.0]
[1645996464621,6.0,84.977,84.873,2.42083714]
[1645996464822,6.0,84.977,84.876,2.34052532]
[1645996465022,6.0,84.977,84.881,118.65788231]
[1645996465223,6.0,84.977,84.884,2.89078202]
[1645996465422,117.0,84.976,84.886,2.86968758]
[1645996465624,117.0,84.974,84.886,2.86968758]
[1645996465822,117.0,84.972,84.886,2.86968758]
[1645996466024,117.0,84.97,84.886,2.86968758]
[1645996466326,117.0,84.968,84.886,2.86968758]
[1645996466522,117.0,84.968,84.855,2.74678921]
[1645996466523,117.0,84.959,84.855,2.74678921]
[1645996466722,4.711,84.958,84.839,23.3209]
[1645996466923,1.46919958,84.956,84.819,2.53411418]
[1645996467124,1.46919958,84.956,84.818,0.33915538]
[1645996467125,117.0,84.954,84.818,0.33915538]
[1645996467324,118.36361776,84.939,84.818,0.33915538]
[1645996467526,117.0,84.937,84.818,0.33915538]
[1645996467724,77.36770684,84.939,84.818,0.33915538]
[1645996467725,117.0,84.935,84.818,0.33915538]
[1645996467924,76.00408908,84.939,84.818,0.33915538]
[1645996467925,117.0,84.933,84.818,0.33915538]
[1645996468128,117.0,84.919,84.818,0.33915538]
[1645996468325,122.0,84.917,84.818,0.33915538]
[1645996468525,117.0,84.915,84.818,0.33915538]
[1645996468728,12.08845622,84.916,84.818,0.33915538]
[1645996468729,117.0,84.899,84.818,0.33915538]
[1645996468933,117.0,84.889,84.772,2.35766192]
[1645996469129,117.0,84.887,84.772,2.35766192]
[1645996469326,117.0,84.885,84.772,2.35766192]
[1645996469525,117.0,84.883,84.772,2.35766192]
[1645996469726,117.0,84.869,84.773,21.92235728]
[1645996469926,42.11836818,84.868,84.774,3.07640026]
[1645996470130,38.66414774,84.868,84.774,120.07640026]
[1645996470326,35.91735853,84.868,84.775,5.5551325]
[1645996470528,35.91735853,84.868,84.79,13.77]
[1645996470728,35.91735853,84.868,84.791,9.86634316]
[1645996470930,35.91735853,84.868,84.791,15.49264546]
[1645996471329,35.91735853,84.868,84.792,2.74678921]
[1645996471534,35.91735853,84.868,84.8,17.6868]
[1645996471731,35.91735853,84.868,84.801,3.11968722]
[1645996471931,22.9762,84.898,84.801,5.86647643]
[1645996472133,6.0,84.897,84.802,8.74678921]
[1645996472331,22.9762,84.898,84.803,117.0]
[1645996472531,22.9762,84.898,84.81,17.6851]
[1645996472731,77.4284,84.94,84.812,117.0]
[1645996472932,26.59915643,84.938,84.813,72.58650419]
[1645996473131,4.712,84.937,84.814,2.8729351]
[1645996473330,4.712,84.937,84.815,6.0]
[1645996473531,26.59915643,84.938,84.815,8.74678921]
[1645996473733,26.59915643,84.938,84.816,2.50752452]
[1645996473931,26.59915643,84.938,84.831,117.0]
[1645996474133,6.0,84.937,84.832,20.77441124]
[1645996474356,6.0,84.937,84.833,2.73464045]
[1645996474630,6.0,84.937,84.835,117.0]
[1645996474833,6.0,84.937,84.836,8.97222961]
[1645996475031,6.0,84.937,84.851,20.76890304]
[1645996475231,6.0,84.937,84.852,2.40108349]
[1645996475630,6.0,84.937,84.852,5.1478727]
[1645996475831,6.0,84.937,84.853,2.74678921]
[1645996476230,2.74678921,84.936,84.853,2.74678921]
[1645996476431,10.711,84.935,84.828,2.74678921]
[1645996476831,10.711,84.935,84.83,13.77]
[1645996477032,2.74678921,84.934,84.83,13.77]
[1645996477235,10.712,84.933,84.831,25.41894488]
[1645996477433,10.712,84.933,84.832,2.40472488]
[1645996478533,10.712,84.933,84.833,2.82437278]
[1645996479035,10.712,84.933,84.834,2.74678921]